bitfinex-derivatives/quotes_SOLF0:USTF0_20241029
["timestamp","ask_amount","ask_price","bid_price","bid_amount"]
[1730223461927,4.74,181.68,181.64,2.753]
[1730223461928,7.4926,181.68,181.64,2.753]
[1730223462120,4.74,181.68,181.59,10.57431047]
[1730223463122,7.4927,181.67,181.63,2.7531]
[1730223463517,4.74,181.67,181.64,2.753]
[1730223463724,4.74,181.67,181.59,10.57431047]
[1730223464329,7.4927,181.67,181.63,2.7532]
[1730223464526,10.57431047,181.71,181.61,10.57431047]
[1730223464722,4.74,181.7,181.61,10.57431047]
[1730223464923,2.7524,181.69,181.66,2.7527]
[1730223465120,4.74,181.7,181.66,2.7527]
[1730223465920,7.4922,181.7,181.66,2.7527]
[1730223467828,7.4922,181.7,181.67,2.7526]
[1730223468319,4.74,181.7,181.68,2.7524]
[1730223468922,4.74,181.7,181.61,10.57431047]
[1730223469123,4.74,181.7,181.67,2.7526]
[1730223469318,4.74,181.7,181.61,10.57431047]
[1730223469520,2.7526,181.67,181.61,10.57431047]
[1730223469730,2.7526,181.67,181.64,2.7529]
[1730223469928,4.74,181.69,181.61,10.57431047]
[1730223470631,7.4923,181.69,181.65,2.7528]
[1730223470826,7.4923,181.69,181.61,10.57431047]
[1730223470827,4.74,181.69,181.61,10.57431047]
[1730223471023,4.74,181.69,181.63,10.57431047]
[1730223472124,4.74,181.69,181.64,2.4931]
[1730223473125,4.74,181.69,181.68,2.7525]
[1730223473727,5.49148334,181.72,181.68,2.7525]
[1730223473923,4.74,181.71,181.68,2.7525]
[1730223474128,4.74,181.7,181.68,2.7525]
[1730223474438,6.76786411,181.69,181.64,9.26096411]
[1730223474835,4.74,181.7,181.64,9.26096411]
[1730223475033,11.50786411,181.7,181.64,9.26096411]
[1730223475435,7.4922,181.7,181.66,2.7527]
[1730223476028,2.73948334,181.72,181.67,6.76786411]
[1730223476229,4.74,181.71,181.68,6.76786411]
[1730223476432,4.74,181.71,181.7,6.76786411]
[1730223477233,2.80792646,181.75,181.7,6.76786411]
[1730223477435,4.74,181.75,181.72,6.76786411]
[1730223477737,7.50743546,181.75,181.72,6.76786411]
[1730223478040,66.26786411,181.78,181.74,6.76786411]
[1730223478041,4.74,181.76,181.74,6.76786411]
[1730223478244,4.74,181.76,181.65,1.2698]
[1730223478245,4.74,181.76,181.75,6.76786411]
[1730223478632,4.74,181.76,181.72,10.57339098]
[1730223478842,4.74,181.76,181.73,2.7517]
[1730223479037,4.74,181.76,181.72,10.57339098]
[1730223479436,4.74,181.76,181.75,2.7514]
[1730223479734,4.74,181.78,181.74,10.57339098]
[1730223480531,4.74,181.78,181.77,2.7511]
[1730223481132,4.74,181.78,181.75,2.7513]
[1730223481341,4.74,181.78,181.72,10.57339098]
[1730223481543,4.74,181.78,181.69,10.57339098]
[1730223481740,2.7512,181.77,181.71,2.7519]
[1730223481943,4.74,181.78,181.69,10.57339098]
[1730223482348,2.7513,181.76,181.71,2.7519]
[1730223482638,4.74,181.78,181.69,10.57339098]
[1730223483043,2.7512,181.76,181.72,2.7517]
[1730223483241,2.7512,181.76,181.69,10.57339098]
[1730223483440,4.74,181.78,181.69,10.57339098]
[1730223483743,10.57339098,181.77,181.67,10.57339098]
[1730223484139,2.7519,181.72,181.69,2.7522]
[1730223484447,4.74,181.72,181.67,10.57339098]
[1730223485040,7.4919,181.72,181.68,2.7524]
[1730223485649,4.74,181.72,181.65,11.84319098]
[1730223486245,7.4919,181.72,181.69,2.7523]
[1730223486442,7.4919,181.72,181.65,11.84319098]
[1730223486648,7.4919,181.72,181.68,2.7523]
[1730223486853,2.7824008,181.71,181.65,11.84319098]
[1730223487049,5.5345008,181.71,181.65,11.84319098]
[1730223487558,2.7523,181.7,181.65,11.84319098]
[1730223488056,2.7824008,181.71,181.64,2.4931]
[1730223488254,4.74,181.72,181.64,2.4931]
[1730223488255,4.74,181.72,181.65,10.57339098]
[1730223488852,2.7521,181.71,181.67,2.7525]
[1730223489055,2.78573709,181.7,181.65,10.57339098]
[1730223489260,4.74,181.72,181.65,10.57339098]
[1730223491351,2.7521,181.71,181.67,2.7526]
[1730223491559,2.73683278,181.7,181.67,2.7526]
[1730223492855,4.74,181.72,181.65,10.57339098]
[1730223493062,4.74,181.72,181.69,2.7522]
[1730223493458,4.74,181.72,181.67,10.57339098]
[1730223494861,2.68637146,181.81,181.7,10.57339098]
[1730223495158,10.57339098,181.84,181.64,7.2331]
[1730223495159,4.74,181.8,181.73,13.32509098]
[1730223495357,2.7511,181.78,181.73,13.32509098]
[1730223495660,2.7511,181.78,181.73,10.57339098]
[1730223495958,2.7511,181.78,181.74,2.7515]
[1730223496256,5.51146853,181.77,181.74,2.7515]
[1730223498956,2.76036853,181.77,181.64,2.4931]
[1730223499152,4.74,181.79,181.68,10.57339098]
[1730223499357,7.45983585,181.79,181.68,10.57339098]
[1730223499565,2.7517,181.73,181.7,2.7521]
[1730223499763,4.74,181.74,181.7,2.7521]
[1730223500364,7.4916,181.74,181.71,2.7519]
[1730223500664,7.4916,181.74,181.68,10.57339098]
[1730223500968,2.7517,181.73,181.7,2.7521]
[1730223501168,4.74,181.74,181.66,10.57339098]
[1730223502065,2.7519,181.72,181.68,2.7524]
[1730223502256,4.74,181.74,181.68,2.7524]
[1730223502863,2.7519,181.72,181.68,2.7524]
[1730223504560,2.752,181.71,181.68,2.7524]
[1730223509261,4.74,181.74,181.68,2.7524]
[1730223509472,2.7519,181.72,181.68,2.7524]
[1730223510459,2.7519,181.72,181.68,2.7523]
[1730223510768,4.74,181.74,181.64,13.06649098]
[1730223510973,15.31339098,181.74,181.64,13.06649098]
[1730223511271,4.74,181.74,181.66,10.57339098]
[1730223511667,9.2002141,181.78,181.72,10.57339098]
[1730223511865,4.74,181.77,181.72,10.57339098]
[1730223512169,4.74,181.77,181.69,10.57339098]
[1730223512371,2.7517,181.74,181.71,2.752]
[1730223512772,7.54581522,181.77,181.69,10.57339098]
[1730223513072,7.54581522,181.77,181.67,10.57339098]
[1730223513276,27.09339098,181.76,181.64,2.4931]
[1730223513475,2.7525,181.68,181.64,5.2461]
[1730223513663,2.75100446,181.67,181.64,2.4931]
[1730223514069,5.50360446,181.67,181.64,5.2461]
[1730223514571,2.7526,181.67,181.66,6.76575778]
[1730223515077,2.7529,181.65,181.62,1.3019]
[1730223515280,4.74,181.68,181.65,2.7529]
[1730223515576,4.74,181.68,181.66,6.76575778]
[1730223515773,4.74,181.68,181.65,6.76575778]
[1730223515968,7.4926,181.68,181.65,6.76575778]
[1730223516171,7.4926,181.68,181.64,2.753]
[1730223516671,4.74,181.68,181.65,2.7528]
[1730223518174,1.2606,181.75,181.62,1.3019]
[1730223518366,1.2606,181.75,181.65,10.57196519]
[1730223518572,4.74,181.74,181.63,4.74]
[1730223518876,2.7522,181.7,181.66,2.7527]
[1730223519071,15.31196519,181.74,181.62,11.87386519]
[1730223520476,4.74,181.74,181.62,11.87386519]
[1730223520677,4.74,181.74,181.65,10.57196519]
[1730223520976,4.74,181.74,181.67,2.7525]
[1730223521367,4.74,181.74,181.65,10.57196519]
[1730223522684,15.31196519,181.74,181.62,11.87386519]
[1730223523882,2.7523,181.7,181.62,11.87386519]
[1730223524178,4.74,181.69,181.62,11.87386519]
[1730223524578,2.7527,181.67,181.63,2.7532]
[1730223524980,2.7529,181.66,181.62,4.0552]
[1730223525177,2.7529,181.66,181.62,1.3019]
[1730223525378,4.74,181.69,181.62,1.3019]
[1730223525872,7.4924,181.69,181.63,10.57196519]
[1730223526068,4.74,181.69,181.63,10.57196519]
[1730223526468,4.74,181.69,181.66,2.7527]
[1730223527675,4.74,181.69,181.63,10.57196519]
[1730223528483,2.7526,181.68,181.64,2.753]
[1730223528685,4.74,181.69,181.62,1.3019]
[1730223529575,2.7527,181.67,181.63,2.7531]
[1730223530272,2.7527,181.67,181.64,2.753]
[1730223530876,4.74,181.69,181.62,1.3019]
[1730223531085,4.74,181.69,181.58,13.19656519]
[1730223531285,27.09196519,181.68,181.46,261.20913056]
[1730223531491,2.7529,181.65,181.61,2.7535]
[1730223531683,4.74,181.64,181.61,2.7535]
[1730223531980,4.74,181.64,181.6,2.7536]
[1730223532481,7.4931,181.64,181.59,2.7538]
[1730223533478,2.7532,181.63,181.59,2.7538]
[1730223535484,4.74,181.64,181.57,10.57196519]
[1730223535676,4.74,181.64,181.59,2.7538]
[1730223536484,2.7533,181.63,181.59,2.7538]
[1730223536675,4.74,181.64,181.59,2.7538]
[1730223537083,7.4931,181.64,181.59,2.7538]
[1730223538288,7.4931,181.64,181.6,2.7536]
[1730223540182,4.74,181.64,181.6,2.7536]
[1730223540388,2.7534,181.62,181.58,2.7539]
[1730223540590,4.74,181.64,181.59,6.77011738]
[1730223541096,2.7532,181.63,181.61,6.77011738]
[1730223544189,4.74,181.64,181.61,6.77011738]
[1730223544395,4.74,181.64,181.62,2.7533]
[1730223545699,7.4931,181.64,181.6,9.52361738]
[1730223546393,7.4931,181.64,181.6,6.77011738]
[1730223546601,7.4931,181.64,181.61,2.7535]
[1730223549588,7.4931,181.64,181.6,6.77011738]
[1730223549885,7.4931,181.64,181.6,9.52361738]
[1730223550089,7.4931,181.64,181.6,6.77011738]
[1730223550491,4.74,181.64,181.61,2.7535]
[1730223550895,4.74,181.63,181.61,2.7535]
[1730223552393,4.74,181.63,181.62,2.7534]
[1730223553895,7.4932,181.63,181.58,9.52411738]
[1730223554196,4.74,181.63,181.58,6.77011738]
[1730223554590,4.74,181.63,181.6,2.7536]
[1730223556804,7.4932,181.63,181.59,9.52391738]
[1730223557008,7.4932,181.63,181.59,6.77011738]
[1730223557393,4.74,181.63,181.59,6.77011738]
[1730223557603,4.74,181.62,181.6,2.7537]
[1730223558603,6.77011738,181.65,181.61,2.7534]
[1730223558604,9.52311738,181.65,181.61,2.7534]
[1730223558808,4.74,181.64,181.61,2.7534]
[1730223559801,7.4931,181.64,181.6,2.7536]
[1730223561507,7.4931,181.64,181.61,2.7535]
[1730223563097,10.46659794,181.68,181.61,6.77011738]
[1730223563303,12.00099686,181.69,181.65,6.77011738]
[1730223563506,9.23949794,181.69,181.68,6.77011738]
[1730223563702,9.23949794,181.71,181.68,6.77011738]
[1730223564002,9.23949794,181.71,181.7,2.7522]
[1730223564207,4.74,181.71,181.7,2.7522]
[1730223564899,4.74,181.71,181.69,9.52231738]
[1730223565507,5.55330319,181.73,181.7,2.7522]
[1730223565804,4.74,181.71,181.7,2.7522]
[1730223566406,9.2393882,181.79,181.7,2.7522]
[1730223566407,4.74,181.72,181.7,6.77011738]
[1730223566599,4.74,181.73,181.7,6.77011738]
[1730223567410,4.74,181.73,181.7,9.52221738]
[1730223567709,4.74,181.73,181.69,6.77011738]
[1730223567906,7.4917,181.73,181.68,6.77011738]
[1730223568310,14.26181738,181.73,181.68,6.77011738]
[1730223568606,14.26181738,181.73,181.68,9.52251738]
[1730223569710,2.79786047,181.75,181.7,6.77011738]
[1730223569911,4.72,181.75,181.74,6.77011738]
[1730223572218,4.72,181.75,181.73,6.77011738]
[1730223573117,4.72,181.75,181.74,6.77011738]
[1730223573620,4.72,181.78,181.74,9.52151738]
[1730223573920,4.72,181.79,181.75,6.77011738]
[1730223574423,4.72,181.79,181.74,6.77011738]
[1730223574424,11.49011738,181.79,181.74,6.77011738]
[1730223574921,2.7513,181.76,181.74,6.77011738]
[1730223576023,2.7512,181.77,181.74,6.77011738]
[1730223577328,2.7512,181.77,181.75,6.77011738]
[1730223579317,11.49011738,181.79,181.74,6.77011738]
[1730223579523,6.77011738,181.76,181.7,2.752]
[1730223579719,6.77011738,181.76,181.71,6.77011738]
[1730223580022,2.7518,181.73,181.69,2.7522]
[1730223580226,6.77011738,181.72,181.67,8.09231738]
[1730223580425,4.72,181.72,181.68,6.77011738]
[1730223580628,4.72,181.72,181.7,6.77011738]
[1730223581532,7.4719,181.72,181.7,6.77011738]
[1730223587734,7.4719,181.72,181.68,9.52251738]
[1730223591430,4.72,181.72,181.7,9.52221738]
[1730223591633,4.72,181.76,181.71,6.77011738]
[1730223591831,2.7932631,181.77,181.73,6.77011738]
[1730223591832,7.5132631,181.77,181.73,6.77011738]
[1730223592032,2.7514,181.75,181.72,9.52181738]
[1730223592426,2.7514,181.75,181.72,6.77011738]
[1730223592933,6.77011738,181.75,181.7,6.77011738]
[1730223593137,2.7517,181.74,181.7,9.52211738]
[1730223593937,2.7517,181.74,181.71,2.752]
[1730223596040,2.751,181.78,181.74,2.7515]
[1730223596234,4.72,181.77,181.75,6.77011738]
[1730223596436,6.77011738,181.8,181.75,6.77011738]
[1730223596631,4.72,181.79,181.75,6.77011738]
[1730223596837,6.77011738,181.78,181.73,2.7517]
[1730223597031,6.77011738,181.78,181.73,9.52181738]
[1730223598338,2.7513,181.76,181.73,9.52181738]
[1730223601443,2.7512,181.77,181.74,6.77011738]
[1730223602536,2.7512,181.77,181.73,9.52181738]
[1730223605539,2.7513,181.76,181.73,9.52181738]
[1730223606542,2.7511,181.78,181.75,6.77011738]
[1730223607650,2.7511,181.78,181.76,6.77011738]
[1730223608952,4.72,181.79,181.76,6.77011738]
[1730223609254,2.7511,181.77,181.76,6.77011738]
[1730223609449,2.7511,181.77,181.74,2.7515]
[1730223609654,2.7511,181.77,181.75,6.77011738]
[1730223609948,4.72,181.79,181.75,6.77011738]
[1730223610249,4.72,181.79,181.76,6.77011738]
[1730223610953,4.72,181.79,181.76,9.52121738]
[1730223611150,4.72,181.8,181.76,9.52121738]
[1730223611447,6.77011738,181.84,181.77,6.77011738]
[1730223611643,2.7507,181.8,181.77,9.52111738]
[1730223613250,2.7505,181.81,181.79,9.52091738]
[1730223613554,4.72,181.82,181.8,6.77011738]
[1730223614349,7.4704,181.82,181.8,9.52071738]
[1730223614946,4.72,181.84,181.83,2.7502]
[1730223615152,4.72,181.84,181.83,6.77011738]
[1730223615956,7.47,181.84,181.83,6.77011738]
[1730223616354,4.72,181.84,181.74,1.2138]
[1730223616549,2.7504,181.82,181.79,6.77011738]
[1730223616951,2.7504,181.82,181.79,9.52081738]
[1730223617250,2.73710419,181.87,181.8,6.77011738]
[1730223617453,4.72,181.86,181.8,2.7506]
[1730223617658,4.72,181.86,181.81,6.77011738]
[1730223618065,6.77011738,181.82,181.74,1.2138]
[1730223618256,6.77011738,181.83,181.77,6.77011738]
[1730223618458,2.7506,181.81,181.79,6.77011738]
[1730223620558,2.7506,181.8,181.79,6.77011738]
[1730223621458,2.7505,181.81,181.79,6.77011738]
[1730223621852,4.72,181.86,181.8,6.77011738]
[1730223621853,11.49011738,181.86,181.8,6.77011738]
[1730223622165,4.72,181.85,181.82,6.77011738]
[1730223622763,11.49011738,181.85,181.8,6.77011738]
[1730223623069,11.49011738,181.85,181.74,1.2138]
[1730223623070,6.77011738,181.82,181.74,1.2138]
[1730223623261,6.77011738,181.84,181.78,6.77011738]
[1730223623558,6.77011738,181.84,181.78,9.52091738]
[1730223624153,2.7504,181.82,181.78,9.52091738]
[1730223624360,6.77011738,181.84,181.78,9.52091738]
[1730223624665,2.7508,181.8,181.76,2.7512]
[1730223624857,2.7508,181.8,181.76,9.52131738]
[1730223624858,4.72,181.8,181.76,9.52131738]
[1730223625258,7.4708,181.8,181.76,9.52131738]
[1730223625666,7.4708,181.8,181.78,6.77011738]
[1730223625862,4.72,181.8,181.78,6.77011738]
[1730223626474,4.72,181.8,181.79,6.77011738]
[1730223627564,4.72,181.8,181.77,2.7511]
[1730223627565,7.4706,181.8,181.77,9.52121738]
[1730223627768,4.72,181.8,181.77,6.77011738]
[1730223629363,4.72,181.8,181.79,6.77011738]
[1730223629569,4.72,181.8,181.77,2.751]
[1730223629866,4.72,181.8,181.79,6.77011738]
[1730223630069,2.70694815,181.88,181.79,9.52091738]
[1730223630266,4.7,181.87,181.83,6.77011738]
[1730223630463,2.75,181.85,181.83,6.77011738]
[1730223630662,200.88913979,181.89,181.75,1.2666]
[1730223630870,4.7,181.88,181.86,6.77011738]
[1730223631267,7.4495,181.88,181.86,6.77011738]
[1730223631570,4.7,181.88,181.86,6.77011738]
[1730223631966,4.7,181.88,181.75,1.2666]
[1730223632172,4.7,181.88,181.85,6.77011738]
[1730223632373,4.7,181.88,181.86,6.77011738]
[1730223633573,66.21011738,181.93,181.86,6.77011738]
[1730223633778,7.4492,181.9,181.88,6.77011738]
[1730223634076,4.7,181.9,181.88,6.77011738]
[1730223635167,2.7493,181.89,181.88,6.77011738]
[1730223637077,7.4492,181.9,181.88,6.77011738]
[1730223637283,16.53,181.99,181.9,2.749]
[1730223637579,2.7485,181.94,181.93,6.77011738]
[1730223637769,6.77011738,181.97,181.91,6.77011738]
[1730223637971,6.77011738,181.96,181.91,6.77011738]
[1730223638175,2.7488,181.92,181.91,6.77011738]
[1730223638977,2.7492,181.9,181.88,6.77011738]
[1730223639280,6.77011738,181.92,181.86,8.00191738]
[1730223639474,11.47011738,181.92,181.86,8.00191738]
[1730223639672,11.47011738,181.92,181.87,6.77011738]
[1730223640074,4.7,181.92,181.87,6.77011738]
[1730223642373,2.7493,181.89,181.87,6.77011738]
[1730223642775,4.7,181.92,181.87,6.77011738]
[1730223642969,4.7,181.92,181.86,6.77011738]
[1730223643174,2.7497,181.87,181.86,6.77011738]
[1730223643780,2.75,181.85,181.81,1.2959]
[1730223643982,2.75,181.85,181.84,6.77011738]
[1730223645567,2.77661876,181.89,181.84,6.77011738]
[1730223645768,2.7497,181.86,181.84,6.77011738]
[1730223646774,2.7499,181.85,181.84,6.77011738]
[1730223648783,4.7,181.87,181.84,9.52011738]
[1730223648978,4.7,181.9,181.86,6.77011738]
[1730223649680,2.7496,181.88,181.86,6.77011738]
[1730223652278,2.7497,181.87,181.85,6.77011738]
[1730223652778,11.47011738,181.9,181.81,1.2959]
[1730223652779,6.77011738,181.88,181.81,1.2959]
[1730223652980,6.77011738,181.88,181.82,6.77011738]
[1730223653479,9.53591365,181.88,181.82,6.77011738]
[1730223653885,9.53591365,181.88,181.82,9.52041738]
[1730223653886,2.75,181.85,181.82,9.52041738]
[1730223654874,2.75,181.85,181.82,6.77011738]
[1730223655591,9.53591365,181.88,181.81,4.0463]
[1730223655592,2.7496,181.87,181.84,6.77011738]
[1730223656082,2.76579627,181.88,181.84,6.77011738]
[1730223656277,2.7496,181.87,181.84,9.52011738]
[1730223656679,2.7495,181.88,181.86,6.77011738]
[1730223656988,4.7,181.9,181.86,6.77011738]
[1730223657177,4.7,181.9,181.81,1.2959]
[1730223657378,4.7,181.9,181.85,6.77011738]
[1730223657591,4.7,181.9,181.81,1.2959]
[1730223657592,6.77011738,181.88,181.81,1.2959]
[1730223657888,6.77011738,181.88,181.84,6.77011738]
[1730223658079,6.77011738,181.88,181.82,6.77011738]
[1730223658284,6.77011738,181.87,181.82,6.77011738]
[1730223658475,6.77011738,181.87,181.81,6.77011738]
[1730223659082,2.8058216,181.86,181.81,6.77011738]
[1730223659579,2.7502,181.84,181.81,9.52061738]
[1730223660176,2.75,181.85,181.82,9.52041738]
[1730223660376,6.77011738,181.88,181.82,9.52041738]
[1730223660581,9.47717359,181.88,181.82,9.52041738]
[1730223660781,6.77011738,181.88,181.82,9.52041738]
[1730223661294,2.7499,181.85,181.82,9.52041738]
[1730223662489,2.7502,181.83,181.77,3.0]
[1730223662687,2.7502,181.83,181.8,6.77011738]
[1730223663491,2.7501,181.84,181.8,6.77011738]
[1730223663693,4.7,181.85,181.8,6.77011738]
[1730223663885,6.77011738,181.84,181.78,6.77011738]
[1730223664093,2.7506,181.81,181.78,6.77011738]
[1730223664291,6.77011738,181.83,181.78,6.77011738]
[1730223665396,2.7506,181.81,181.78,6.77011738]
[1730223668685,2.7506,181.81,181.77,3.0]
[1730223668686,2.7509,181.79,181.77,3.0]
[1730223668996,6.77011738,181.81,181.77,3.0]
[1730223669392,2.7509,181.79,181.77,3.0]
[1730223669895,2.7507,181.8,181.77,9.77011738]
[1730223670499,2.7507,181.8,181.77,12.52111738]
[1730223670995,2.7507,181.8,181.77,9.77011738]
[1730223671800,2.7505,181.81,181.77,9.77011738]
[1730223671997,6.77011738,181.81,181.77,3.0]
[1730223672294,6.77011738,181.81,181.78,2.7509]
[1730223673092,1.2765,181.85,181.78,6.77011738]
[1730223673293,2.7503,181.83,181.8,6.77011738]
[1730223674295,2.7503,181.83,181.8,9.52071738]
[1730223674496,4.7,181.84,181.8,6.77011738]
[1730223674796,2.7499,181.86,181.83,2.7501]
[1730223674993,4.7,181.87,181.83,2.7501]
[1730223675502,2.7498,181.86,181.83,2.75]
[1730223675904,2.7498,181.86,181.82,6.77011738]
[1730223676100,6.77011738,181.86,181.81,6.77011738]
[1730223676292,2.75,181.85,181.81,6.77011738]
[1730223677803,6.77011738,181.86,181.77,3.0]
[1730223678000,6.77011738,181.86,181.81,6.77011738]
[1730223678598,6.77011738,181.85,181.79,6.77011738]
[1730223679198,2.7503,181.83,181.79,9.52081738]
[1730223679598,2.7503,181.83,181.8,2.7506]
[1730223680793,6.77011738,181.85,181.79,6.77011738]
[1730223680997,6.77011738,181.83,181.78,9.52101738]
[1730223682004,2.7506,181.81,181.78,6.77011738]
[1730223682203,4.7,181.82,181.78,6.77011738]
[1730223683009,11.47011738,181.82,181.78,6.77011738]
[1730223683196,6.77011738,181.8,181.77,3.0]
[1730223683597,2.7509,181.78,181.77,3.0]
[1730223685508,2.7508,181.79,181.77,3.0]
[1730223687106,2.7508,181.79,181.78,6.77011738]
[1730223689514,2.7508,181.79,181.77,3.0]
[1730223690215,2.7508,181.79,181.77,5.7511]
[1730223693823,2.7509,181.78,181.77,3.0]
[1730223698328,9.52101738,181.78,181.77,3.0]
[1730223698515,2.7509,181.78,181.77,3.0]
[1730223701525,4.68,181.8,181.77,9.77011738]
[1730223702232,4.68,181.8,181.77,12.52111738]
[1730223702427,4.68,181.81,181.77,12.52111738]
[1730223702828,2.7508,181.8,181.77,12.52111738]
[1730223703038,2.7508,181.8,181.77,9.77011738]
[1730223703329,2.7508,181.8,181.78,2.7509]
[1730223704128,2.7508,181.8,181.77,9.77011738]
[1730223704333,2.7509,181.79,181.77,3.0]
[1730223704633,6.77011738,181.8,181.77,3.0]
[1730223705227,2.7508,181.79,181.77,3.0]
[1730223707034,2.5343,181.86,181.8,2.7505]
[1730223707237,6.77011738,181.84,181.78,6.77011738]
[1730223707836,2.7506,181.81,181.78,9.52101738]
[1730223709227,1.2863,181.86,181.8,9.52071738]
[1730223709430,17.8183,181.91,181.81,6.77011738]
[1730223709642,4.68,181.85,181.81,6.77011738]
[1730223709841,7.43765338,181.84,181.81,6.77011738]
[1730223710138,2.7502,181.83,181.81,6.77011738]
[1730223711139,4.68,181.85,181.82,6.77011738]
[1730223712036,7.4299,181.85,181.83,2.7502]
[1730223712631,4.68,181.87,181.83,9.52031738]
[1730223712841,4.68,181.87,181.83,6.77011738]
[1730223713142,2.7499,181.85,181.83,6.77011738]
[1730223713538,6.77011738,181.85,181.8,9.52061738]
[1730223713741,2.7502,181.84,181.8,9.52061738]
[1730223714136,2.7502,181.84,181.8,6.77011738]
[1730223714330,2.7502,181.84,181.81,2.7505]
[1730223714529,6.77011738,181.85,181.8,6.77011738]
[1730223714733,2.7503,181.83,181.8,6.77011738]
[1730223715334,6.77011738,181.85,181.78,2.4613]
[1730223715539,2.7506,181.81,181.78,9.23141738]
[1730223716038,2.7503,181.83,181.8,6.77011738]
[1730223716237,11.45011738,181.87,181.82,6.77011738]
[1730223716941,2.7502,181.83,181.82,6.77011738]
[1730223718641,2.7498,181.86,181.82,9.52041738]
[1730223718939,4.68,181.87,181.82,9.52041738]
[1730223719345,2.75,181.85,181.82,9.52041738]
[1730223719647,4.68,181.87,181.82,9.52041738]
[1730223719831,11.45011738,181.87,181.82,9.52041738]
[1730223720644,2.75,181.85,181.82,9.52041738]
[1730223721735,11.45011738,181.87,181.82,9.52041738]
[1730223721736,2.7501,181.84,181.82,9.52041738]
[1730223722145,11.45011738,181.87,181.78,2.4613]
[1730223722343,6.77011738,181.85,181.79,6.77011738]
[1730223722649,11.45011738,181.87,181.81,6.77011738]
[1730223723145,2.7503,181.83,181.81,6.77011738]
[1730223724039,2.7503,181.83,181.8,9.52071738]
[1730223724241,2.7504,181.82,181.8,6.77011738]
[1730223724448,6.77011738,181.85,181.8,6.77011738]
[1730223725246,2.7505,181.81,181.8,6.77011738]
[1730223725939,2.7505,181.81,181.78,8.01711738]
[1730223726138,2.80919181,181.88,181.77,9.77011738]
[1730223726139,2.7507,181.8,181.77,9.77011738]
[1730223726344,11.45011738,181.82,181.77,9.77011738]
[1730223726545,2.7508,181.79,181.77,12.52111738]
[1730223727150,2.7508,181.79,181.77,9.77011738]
[1730223727451,2.7509,181.78,181.77,3.0]
[1730223739252,9.52101738,181.78,181.77,3.0]
[1730223739448,2.7509,181.78,181.77,3.0]
[1730223739951,9.52101738,181.78,181.77,3.0]
[1730223740344,12.25859977,181.78,181.77,3.0]
[1730223745051,5.48848239,181.78,181.77,3.0]
[1730223746555,12.25859977,181.78,181.77,3.0]
[1730223751758,16.91859977,181.78,181.77,3.0]
[1730223754664,2.7522,181.7,181.67,2.4974]
[1730223754865,6.77011738,181.7,181.67,2.4974]
[1730223755160,6.77011738,181.7,181.67,9.26751738]
[1730223755365,9.52211738,181.72,181.67,9.26751738]
[1730223755759,9.52211738,181.72,181.69,2.7523]
[1730223756560,6.77011738,181.72,181.67,9.26751738]
[1730223756870,6.77011738,181.72,181.68,6.77011738]
[1730223757262,9.52201738,181.72,181.69,2.7522]
[1730223758067,4.66,181.73,181.62,1.2395]
[1730223758068,2.7525,181.68,181.65,2.7528]
[1730223758257,6.77011738,181.69,181.62,1.2395]
[1730223758457,6.77011738,181.71,181.66,6.77011738]
[1730223759369,2.7524,181.69,181.66,6.77011738]
[1730223760259,2.7524,181.69,181.66,9.52281738]
[1730223761769,2.7522,181.7,181.66,9.52281738]
[1730223763871,2.7522,181.7,181.67,2.7526]
[1730223764070,6.77011738,181.69,181.67,2.7526]
[1730223764775,6.77011738,181.69,181.65,6.77011738]
[1730223764776,9.52251738,181.69,181.66,2.7527]
[1730223765267,6.77011738,181.69,181.65,6.77011738]
[1730223766266,9.52241738,181.69,181.66,2.7527]
[1730223766877,6.77011738,181.73,181.68,6.77011738]
[1730223767072,4.66,181.72,181.68,6.77011738]
[1730223767269,6.77011738,181.71,181.63,1.2875]
[1730223767468,6.77011738,181.71,181.66,6.77011738]